fUSD/lending_fUSD_20240327
["ID","MTS","AMOUNT","RATE_DAILY","PERIOD"]
[320717220,1711531834803,-673.65490502,0.00035999,30]
[320717221,1711531834812,-1286.52095883,0.00035999,30]
[320717222,1711531834823,-1286.52095883,0.00035999,30]
[320717223,1711531834832,-916334.68090889,0.00036,4]
[320717224,1711531834846,-500.71354731,0.00036,4]
[320717225,1711531834857,-309.97,0.00036,4]
[320717226,1711531834869,-748.42002,0.00036,4]
[320717227,1711531834881,-14829.87544267,0.00036,4]
[320717228,1711531834892,-34254.33368298,0.00036,4]
[320717229,1711531834903,-538.88,0.00036,4]
[320717233,1711531837928,-435.63895488,0.0003599,2]
[320717234,1711531837937,-435.63895488,0.0003599,2]
[320717235,1711531837951,-1996.09501082,0.00036,4]
[320717236,1711531837964,-4542.02913399,0.00036,4]
[320717237,1711531837975,-758.36707319,0.00036,4]
[320717238,1711531838087,-4.54444267,0.00036,4]
[320717239,1711531838100,-1792.04521374,0.00036,4]
[320717240,1711531838112,-1260721.03052645,0.00036,4]
[320717241,1711531838122,-178.43,0.00036,7]
[320717242,1711531838133,-182.87,0.00036,2]
[320717243,1711531838143,-183.17,0.00036,2]
[320717244,1711531838153,-901.41,0.00036254,2]
[320717245,1711531838162,-1249.72811619,0.000369,2]
[320717246,1711531838172,-2505.073525,0.000369,28]
[320717247,1711531838181,-1500.0,0.000374,28]
[320717248,1711531838190,-1249.72811619,0.000379,2]
[320717249,1711531838199,-1500.0,0.000379,28]
[320717250,1711531838209,-8489.079015,0.00037982,11]
[320717251,1711531838218,-208.0517014,0.00038372,10]
[320717252,1711531838227,-1500.0,0.000384,28]
[320717253,1711531838236,-832.40320251,0.00038418,2]
[320717254,1711531838247,-901.41,0.00038518,2]
[320717255,1711531838257,-1249.72811619,0.00038899,2]
[320717256,1711531838266,-600.0,0.000389,120]
[320717257,1711531838275,-1500.0,0.000389,28]
[320717258,1711531838284,-2862.18973856,0.00039124,9]
[320717259,1711531838294,-14236.09162045,0.00039339,2]
[320717260,1711531838303,-171.8647512,0.00039521,2]
[320717261,1711531838313,-1249.72811619,0.00039899,2]
[320717262,1711531838322,-1000.0,0.00039939,30]
[320717263,1711531838332,-155.45223297,0.00039999,4]
[320717264,1711531838341,-436.84584101,0.00039999,31]
[320717265,1711531838350,-500.0,0.00039999,31]
[320717266,1711531838359,-363.51487366,0.00039999,31]
[320717267,1711531838368,-985.45389582,0.0004,30]
[320717268,1711531838377,-3357.71176501,0.0004,4]
[320717269,1711531838387,-7937.94912886,0.0004,4]
[320717270,1711531838396,-4753.15701994,0.0004,4]
[320717271,1711531838406,-95370.3974185,0.0004,2]
[320717273,1711531838415,-5743.01202704,0.0004,4]
[320717274,1711531838425,-183.17,0.0004,7]
[320717275,1711531838434,-8489.079015,0.00040064,14]
[320717276,1711531838443,-182.87,0.000401,7]
[320717277,1711531838452,-153.63530801,0.00040207,2]
[320717278,1711531838462,-1511.32725023,0.000403,2]
[320717279,1711531838471,-198.78445374,0.000403,2]
[320717280,1711531838480,-1707.07565955,0.000403,2]
[320717281,1711531838490,-3451.67,0.00040398,2]
[320717282,1711531838499,-178.43,0.000404,7]
[320717283,1711531838508,-183.64012445,0.00040667,2]
[320717284,1711531838518,-162.73,0.00040767,15]
[320717285,1711531838527,-901.41,0.00040782,2]
[320717286,1711531838536,-7841.77272824,0.00041,4]
[320717287,1711531838546,-170.24,0.00041002,2]
[320717288,1711531838556,-1500.0,0.00041096,120]
[320717289,1711531838565,-183.0,0.00041096,2]
[320717290,1711531838575,-1000.0,0.00041644,120]
[320717291,1711531838584,-8489.079015,0.00042147,16]
[320717292,1711531838593,-2862.18973856,0.00042512,10]
[320717293,1711531838603,-176.96843755,0.00042621,17]
[320717294,1711531838612,-14236.09162045,0.00042904,2]
[320717295,1711531838622,-901.41,0.00043046,2]
[320717296,1711531838632,-182.87,0.000439,7]
[320717297,1711531838641,-1081.60139021,0.0004394,7]
[320717298,1711531838651,-1081.60139021,0.0004394,7]
[320717299,1711531838660,-178.43,0.00044,7]
[320717300,1711531838669,-183.17,0.00044,7]
[320717301,1711531838678,-8489.079015,0.00044229,19]
[320717302,1711531838687,-153.63530801,0.00044514,16]
[320717303,1711531838697,-2619.67,0.00044853,120]
[320717304,1711531838706,-339.22517766,0.00045,10]
[320717305,1711531838715,-22038.94073476,0.00045,4]
[320717306,1711531838724,-500.0,0.00045,14]
[320717307,1711531838734,-901.41,0.0004531,2]
[320717308,1711531838743,-259.85932158,0.00045704,4]
[320717309,1711531838751,-432.08409502,0.00045705,4]
[320717310,1711531838761,-1000.0,0.00045705,4]
[320717311,1711531838769,-3874.80573929,0.00045705,4]
[320717312,1711531838779,-155.0,0.00045808,4]
[320717313,1711531838797,-155.01870001,0.00045863,30]
[320717314,1711531838808,-171.86475117,0.00045866,120]
[320717315,1711531838818,-2862.18973856,0.000459,12]
[320717316,1711531838828,-22077.78,0.00045931,30]
[320717317,1711531838838,-12954.78,0.00045931,2]
[320717318,1711531838848,-414.82,0.00046096,2]
[320717319,1711531838859,-8489.079015,0.00046311,21]
[320717320,1711531838868,-14236.09162045,0.00046468,2]
[320717321,1711531838878,-178.43,0.000468,7]
[320717322,1711531838887,-183.17,0.00047,7]
[320717323,1711531838896,-8632.23,0.00047039,2]
[320717324,1711531838906,-517.46,0.00047246,2]
[320717325,1711531838915,-901.41,0.00047574,2]
[320717326,1711531838925,-832.4032025,0.00047652,2]
[320717327,1711531838934,-151.54545459,0.00047692,30]
[320717328,1711531838945,-157.032718,0.00047798,83]
[320717329,1711531838955,-170.24,0.00047836,2]
[320717330,1711531838965,-523.66152424,0.0004784,7]
[320717331,1711531838974,-158.0359404,0.00047847,30]
[320717332,1711531838984,-435.63895488,0.00047909,2]
[320717333,1711531838994,-90662.75609396,0.00047919,7]
[320717334,1711531839005,-157.36286158,0.00047967,30]
[320717335,1711531839018,-560.75087012,0.00048,4]
[320717336,1711531839028,-503.6111413,0.00048,100]
[320717337,1711531839038,-151.54545459,0.00048135,30]
[320717338,1711531839048,-157.032718,0.00048198,84]
[320717339,1711531839058,-157.36286158,0.00048219,30]
[320717340,1711531839068,-10000.0,0.0004832,30]
[320717341,1711531839079,-8489.079015,0.00048393,24]
[320717342,1711531839089,-151.54545459,0.00048399,30]
[320717343,1711531839099,-157.032718,0.00048498,85]
[320717344,1711531839109,-153.43825922,0.00048576,30]
[320717345,1711531839119,-1511.32725023,0.00048593,2]
[320717346,1711531839128,-198.78445372,0.00048593,2]
[320717347,1711531839137,-1707.07565955,0.00048593,2]
[320717348,1711531839147,-77048.4002,0.00048698,2]
[320717349,1711531839156,-1111.0,0.000487,4]
[320717350,1711531839166,-18053.59407368,0.00048798,10]
[320717351,1711531839176,-157.032718,0.00048798,86]
[320717352,1711531839187,-153.63530801,0.0004882,33]
[320717353,1711531839197,-162.73,0.00048986,15]
[320717354,1711531839207,-1000.0,0.00049,120]
[320717355,1711531839218,-43076.0,0.00049,120]
[320717356,1711531839231,-30103.0,0.00049,120]
[320717357,1711531839241,-157.032718,0.00049198,87]
[320717358,1711531839250,-2862.18973856,0.00049288,14]
[320717359,1711531839260,-3399.89300546,0.000493,2]
[320717360,1711531839270,-176.96843755,0.00049343,25]
[320717361,1711531839280,-157.25738244,0.00049429,30]
[320717362,1711531839290,-151.54545459,0.00049431,30]
[320717363,1711531839302,-157.032718,0.00049498,88]
[320717364,1711531839311,-157.032718,0.00049798,89]
[320717365,1711531839322,-901.41,0.00049838,2]
[320717366,1711531839333,-157.25738245,0.0004984,30]
[320717367,1711531839342,-160.17758889,0.00049888,30]
[320717368,1711531839353,-212.33215318,0.00049897,120]
[320717369,1711531839363,-1648.557,0.00049897,120]
[320717370,1711531839373,-1648.558,0.00049897,120]
[320717371,1711531839382,-1648.558,0.00049897,120]
[320717372,1711531839393,-1648.558,0.00049897,120]
[320717373,1711531839404,-1648.557,0.00049897,120]
[320717374,1711531839414,-151.54545459,0.00049953,30]
[320717375,1711531839424,-1291.33627352,0.0005,30]
[320717376,1711531839434,-567.75368568,0.0005,30]
[320717377,1711531839444,-5000.0,0.0005,30]
[320717378,1711531839453,-1600.0166858,0.0005,120]
[320717379,1711531839463,-14236.09162045,0.00050032,2]
[320717380,1711531839474,-2000.0,0.00050137,120]
[320717381,1711531839484,-157.36286158,0.00050149,60]
[320717382,1711531839494,-151.22191435,0.00050175,60]
[320717383,1711531839503,-157.032718,0.00050198,90]
[320717384,1711531839513,-8489.079015,0.00050475,27]
[320717385,1711531839522,-157.032718,0.00050498,91]
[320717386,1711531839531,-160.17758889,0.00050503,60]
[320717387,1711531839541,-150.0,0.00050604,120]
[320717388,1711531839550,-4621.0,0.00050685,120]
[320717389,1711531839559,-3073.0,0.00050685,120]
[320717390,1711531839569,-157.032718,0.00050798,92]
[320717391,1711531839579,-245000.0,0.00050798,2]
[320717392,1711531839588,-1000.0,0.00050798,2]
[320717393,1711531839598,-1802.68724567,0.00050799,2]
[320717394,1711531839608,-151.54545459,0.00050858,60]
[320717395,1711531839617,-155.28061758,0.00050898,4]
[320717396,1711531839626,-155.38639491,0.00050898,4]
[320717397,1711531839636,-155.30642501,0.00050898,4]
[320717398,1711531839645,-197.81426473,0.00050898,4]
[320717399,1711531839655,-155.0,0.00050898,4]
[320717400,1711531839666,-2595.96864508,0.00050898,4]
[320717401,1711531839676,-200.0,0.00050898,2]
[320717402,1711531839686,-166.33991027,0.00050898,4]
[320717403,1711531839696,-155.37962598,0.00050898,4]
[320717404,1711531839705,-155.0,0.00050898,4]
[320717405,1711531839714,-183.86804207,0.00050898,4]
[320717406,1711531839723,-187.79767231,0.00050898,4]
[320717407,1711531839732,-453.41483993,0.00050898,4]
[320717408,1711531839742,-155.0,0.00050898,4]
[320717409,1711531839754,-305.98744394,0.00050898,90]
[320717410,1711531839763,-1178.09354744,0.000509,4]
[320717411,1711531839773,-310.0,0.000509,120]
[320717412,1711531839782,-511.83599996,0.000509,4]
[320717413,1711531839792,-3766.34690789,0.000509,4]
[320717414,1711531839801,-153.11899099,0.000509,120]
[320717415,1711531839810,-153.11899086,0.000509,120]
[320717416,1711531839820,-153.11899086,0.000509,120]
[320717417,1711531839830,-153.11899086,0.000509,120]
[320717418,1711531839840,-153.11899086,0.000509,120]
[320717419,1711531839849,-153.11899086,0.000509,120]
[320717420,1711531839859,-153.11899086,0.000509,120]
[320717422,1711531839868,-153.11899086,0.000509,120]
[320717423,1711531839878,-153.11899086,0.000509,120]
[320717424,1711531839887,-153.11899086,0.000509,120]
[320717425,1711531839896,-153.11899086,0.000509,120]
[320717426,1711531839906,-153.11899086,0.000509,120]
[320717428,1711531839914,-153.11899086,0.000509,120]
[320717429,1711531839925,-153.11899086,0.000509,120]
[320717430,1711531839933,-153.11899086,0.000509,120]
[320717431,1711531839943,-167.95611615,0.00050949,60]
[320717432,1711531839952,-156.64243038,0.00051034,60]
[320717433,1711531839961,-1053.93053972,0.000511,30]
[320717434,1711531839970,-157.032718,0.00051198,93]
[320717435,1711531839981,-5313.0,0.000512,12]
[320717436,1711531839990,-157.36286158,0.00051239,60]
[320717437,1711531840000,-151.54545459,0.00051286,60]
[320717438,1711531840013,-157.36286158,0.00051402,60]
[320717439,1711531840023,-160.13519834,0.00051471,60]
[320717440,1711531840033,-157.032718,0.00051498,94]
[320717441,1711531840044,-182.87,0.000515,7]
[320717442,1711531840055,-183.17,0.000516,7]
[320717443,1711531840066,-151.54545459,0.00051626,60]
[320717444,1711531840075,-3451.67,0.00051631,120]
[320717445,1711531840088,-168.4,0.00051649,2]
[320717446,1711531840098,-151.22191435,0.00051671,60]
[320717447,1711531840107,-1787.768,0.00051741,120]
[320717448,1711531840119,-541.285,0.00051741,120]
[320717449,1711531840129,-1046.0,0.00051741,120]
[320717450,1711531840139,-157.032718,0.00051798,95]
[320717451,1711531840149,-4200.0,0.000519,18]
[320717452,1711531840159,-150.11,0.00052,120]
[320717453,1711531840169,-500.0,0.00052054,60]
[320717454,1711531840179,-1012.01,0.00052054,2]
[320717455,1711531840394,-160.13519834,0.00052076,60]
[320717456,1711531840405,-901.41,0.00052102,2]
[320717457,1711531840415,-157.032718,0.00052198,96]
[320717458,1711531840427,-153.5,0.000522,30]
[320717459,1711531840437,-171.86475117,0.00052211,120]
[320717460,1711531840447,-151.54545459,0.00052477,60]
[320717461,1711531840458,-157.032718,0.00052498,97]
[320717462,1711531840468,-178.43,0.000525,7]
[320717463,1711531840478,-8489.079015,0.00052557,29]
[320717464,1711531840487,-167.95611615,0.00052575,60]
[320717465,1711531840497,-500.0,0.00052602,60]
[320717466,1711531840506,-156.64243038,0.00052604,60]
[320717467,1711531840516,-182.87,0.000527,30]
[320717468,1711531840525,-183.17,0.000527,14]
[320717469,1711531840534,-160.13519834,0.00052713,60]
[320717470,1711531840543,-157.032718,0.00052798,98]
[320717471,1711531840552,-151.54545459,0.00052848,60]
[320717472,1711531840562,-1012.01,0.00052876,120]
[320717473,1711531840571,-300.0,0.00052899,2]
[320717474,1711531840583,-300.0,0.00052899,2]
[320717475,1711531840592,-300.0,0.00052899,2]
[320717476,1711531840602,-300.0,0.00052899,2]
[320717477,1711531840611,-300.0,0.00052899,2]
[320717478,1711531840621,-300.0,0.00052899,2]
[320717479,1711531840631,-300.0,0.00052899,2]
[320717480,1711531840640,-300.0,0.00052899,2]
[320717481,1711531840650,-150.0,0.00052915,7]
[320717482,1711531840660,-157.36286158,0.00052987,60]
[320717483,1711531840670,-377.83440202,0.00052999,2]
[320717484,1711531840681,-9221.64878868,0.00053,4]
[320717485,1711531840690,-1500.0,0.00053,120]
[320717486,1711531840700,-155.71,0.00053,7]
[320717487,1711531840709,-155.71,0.00053,7]
[320717488,1711531840719,-155.71,0.00053,7]
[320717489,1711531840728,-182.26,0.000531,14]
[320717490,1711531840738,-153.63530801,0.00053127,51]
[320717491,1711531840748,-500.0,0.0005315,60]
[320717492,1711531840758,-150.0,0.0005319,7]
[320717493,1711531840768,-157.032718,0.00053198,99]
[320717494,1711531840777,-150.0,0.00053227,7]
[320717495,1711531840787,-151.0,0.00053278,120]
[320717496,1711531840796,-285.549847,0.00053278,120]
[320717497,1711531840805,-150.0,0.00053386,7]
[320717498,1711531840814,-153.5,0.000534,30]
[320717499,1711531840823,-150.0,0.00053404,7]
[320717500,1711531840834,-150.0,0.00053408,7]
[320717501,1711531840843,-655.0,0.00053479,7]
[320717502,1711531840852,-150.0,0.00053486,7]
[320717503,1711531840861,-157.032718,0.00053498,100]
[320717504,1711531840870,-150.0,0.00053554,7]
[320717505,1711531840880,-1500.0,0.00053563,7]
[320717506,1711531840890,-14236.09162045,0.00053596,2]
[320717507,1711531840899,-151.35,0.00053616,60]
[320717508,1711531840908,-1033.84,0.00053616,30]
[320717509,1711531840917,-152.76,0.00053616,30]
[320717510,1711531840926,-318.31,0.00053616,30]
[320717511,1711531840936,-150.0,0.00053647,7]
[320717512,1711531840945,-1362.63295257,0.00053696,4]
[320717513,1711531840954,-500.0,0.00053698,60]
[320717514,1711531840965,-1012.01,0.00053698,120]
[320717515,1711531840976,-560.0,0.00053699,120]
[320717516,1711531840985,-150.0,0.00053699,7]
[320717517,1711531840995,-150.0,0.00053714,7]
[320717518,1711531841004,-386.60453288,0.0005375,30]
[320717519,1711531841017,-150.0,0.00053764,7]
[320717520,1711531841026,-150.0,0.00053777,7]
[320717521,1711531841037,-157.032718,0.00053798,101]
[320717522,1711531841049,-150.0,0.00053802,7]
[320717523,1711531841059,-150.0,0.00053816,7]
[320717524,1711531841069,-1000.0,0.00053831,7]
[320717525,1711531841078,-150.0,0.00053833,7]
[320717526,1711531841091,-150.0,0.0005385,7]
[320717527,1711531841102,-150.0,0.00053875,7]
[320717528,1711531841111,-150.0,0.00053882,7]
[320717529,1711531841121,-150.0,0.00053915,7]
[320717530,1711531841131,-150.0,0.00053944,7]
[320717531,1711531841140,-4555.2429336,0.00053949,4]
[320717532,1711531841150,-150.0,0.00053961,7]
[320717533,1711531841160,-560.0,0.00053972,120]
[320717534,1711531841170,-150.0,0.00053981,7]
[320717535,1711531841179,-155.14249212,0.00053999,4]
[320717536,1711531841189,-309.9848945,0.00054,4]
[320717537,1711531841199,-158.22,0.00054,7]
[320717538,1711531841208,-178.43,0.00054,7]
[320717539,1711531841218,-150.0,0.00054,7]
[320717540,1711531841227,-150.0,0.00054011,7]
[320717541,1711531841237,-150.0,0.00054018,7]
[320717542,1711531841247,-150.0,0.00054037,7]
[320717543,1711531841256,-150.0,0.00054044,7]
[320717544,1711531841266,-150.0,0.00054046,7]
[320717545,1711531841275,-150.0,0.0005405,7]
[320717546,1711531841284,-150.0,0.00054064,7]
[320717547,1711531841294,-150.0,0.00054074,7]
[320717548,1711531841303,-150.0,0.00054101,7]
[320717549,1711531841313,-150.0,0.00054114,7]
[320717550,1711531841322,-150.0,0.00054119,7]
[320717551,1711531841335,-150.0,0.0005412,7]
[320717552,1711531841344,-150.0,0.00054126,7]
[320717553,1711531841353,-150.0,0.00054127,7]
[320717554,1711531841363,-150.0,0.00054143,7]
[320717555,1711531841372,-150.0,0.00054144,7]
[320717556,1711531841382,-150.0,0.00054144,7]
[320717557,1711531841391,-150.0,0.00054147,7]
[320717558,1711531841401,-150.0,0.00054154,7]
[320717559,1711531841411,-150.0,0.00054158,7]
[320717560,1711531841420,-150.0,0.00054162,7]
[320717561,1711531841429,-151.0,0.00054191,2]
[320717562,1711531841438,-157.032718,0.00054198,102]
[320717563,1711531841447,-300.0,0.00054206,7]
[320717564,1711531841457,-150.0,0.00054207,7]
[320717565,1711531841466,-150.0,0.00054213,7]
[320717566,1711531841477,-150.0,0.00054214,7]
[320717567,1711531841486,-150.0,0.00054221,7]
[320717568,1711531841495,-150.0,0.00054223,7]
[320717569,1711531841506,-150.0,0.00054226,7]
[320717570,1711531841515,-150.0,0.00054227,7]
[320717571,1711531841524,-1500.0,0.00054229,7]
[320717572,1711531841534,-150.0,0.00054235,7]
[320717573,1711531841543,-150.0,0.00054238,7]
[320717574,1711531841552,-150.0,0.00054245,7]
[320717575,1711531841561,-560.0,0.00054246,120]
[320717576,1711531841571,-500.0,0.00054246,60]
[320717577,1711531841583,-150.0,0.00054247,30]
[320717578,1711531841592,-150.0,0.0005425,7]
[320717579,1711531841603,-1899.52195,0.0005425,69]
[320717580,1711531841612,-428.75879949,0.00054253,7]
[320717581,1711531841623,-300.0,0.00054254,7]
[320717582,1711531841633,-150.0,0.00054271,7]
[320717583,1711531841642,-150.0,0.00054276,7]
[320717584,1711531841651,-150.0,0.00054288,7]
[320717585,1711531841661,-300.0,0.00054294,7]
[320717586,1711531841670,-150.0,0.00054298,7]
[320717587,1711531841679,-641.05181909,0.00054299,4]
[320717588,1711531841689,-155.11630653,0.000543,4]
[320717589,1711531841698,-155.0,0.000543,4]
[320717590,1711531841708,-189.54,0.000543,14]
[320717591,1711531841717,-150.0,0.00054322,7]
[320717592,1711531841726,-150.0,0.00054335,7]
[320717593,1711531841735,-150.0,0.0005435,7]
[320717594,1711531841745,-150.0,0.00054351,7]
[320717595,1711531841754,-150.0,0.00054352,7]
[320717596,1711531841763,-150.0,0.00054361,7]
[320717597,1711531841773,-150.0,0.00054363,7]
[320717598,1711531841782,-901.41,0.00054366,2]
[320717599,1711531841791,-150.0,0.00054376,7]
[320717600,1711531841801,-150.0,0.0005439,7]
[320717601,1711531841810,-150.0,0.00054403,7]
[320717602,1711531841819,-150.0,0.00054405,7]
[320717603,1711531841829,-150.0,0.00054416,7]
[320717604,1711531841841,-1500.0,0.00054443,7]
[320717605,1711531841850,-150.0,0.00054454,7]
[320717606,1711531841859,-1899.52196,0.0005446,70]
[320717607,1711531841869,-150.0,0.00054464,7]
[320717608,1711531841879,-300.0,0.00054464,7]
[320717609,1711531841888,-160.13519837,0.0005447,60]
[320717610,1711531841897,-150.0,0.00054473,7]
[320717611,1711531841906,-150.0,0.00054474,7]
[320717612,1711531841916,-150.0,0.00054479,7]
[320717613,1711531841925,-157.032718,0.00054498,103]
[320717614,1711531841934,-150.0,0.00054503,7]
[320717615,1711531841944,-150.0,0.00054506,7]
[320717616,1711531841953,-209.01652617,0.00054518,4]
[320717617,1711531841963,-560.0,0.0005452,120]
[320717618,1711531841972,-1012.01,0.0005452,120]
[320717619,1711531841981,-150.0,0.00054526,7]
[320717620,1711531841991,-150.0,0.0005453,7]
[320717621,1711531842003,-150.0,0.00054533,7]
[320717622,1711531842013,-150.0,0.00054539,7]
[320717623,1711531842023,-150.0,0.00054548,7]
[320717624,1711531842033,-150.0,0.00054549,7]
[320717625,1711531842044,-300.0,0.0005457,7]
[320717626,1711531842054,-1084.836114,0.00054598,120]
[320717627,1711531842063,-9576.613557,0.000546,2]
[320717628,1711531842073,-150.0,0.000546,7]
[320717629,1711531842087,-1500.0,0.0005461,7]
[320717630,1711531842097,-150.0,0.00054612,7]
[320717631,1711531842107,-150.0,0.0005462,7]
[320717632,1711531842117,-150.0,0.00054621,7]
[320717633,1711531842126,-300.0,0.00054628,7]
[320717634,1711531842136,-150.0,0.00054633,7]
[320717635,1711531842146,-150.0,0.00054637,7]
[320717636,1711531842155,-8489.079015,0.0005464,32]
[320717637,1711531842164,-150.0,0.0005464,7]
[320717638,1711531842175,-150.0,0.00054651,7]
[320717639,1711531842184,-300.0,0.00054658,7]
[320717640,1711531842194,-150.0,0.00054664,7]
[320717641,1711531842204,-150.0,0.00054668,7]
[320717642,1711531842215,-170.24,0.0005467,2]
[320717643,1711531842224,-150.0,0.0005467,7]
[320717644,1711531842233,-150.0,0.00054671,7]
[320717645,1711531842243,-154.14604573,0.00054672,7]
[320717646,1711531842253,-1500.0,0.00054678,7]
[320717647,1711531842263,-39801.9525,0.00054694,2]
[320717648,1711531842272,-100000.0,0.00054694,2]
[320717649,1711531842282,-406.08005128,0.00054694,4]
[320717650,1711531842291,-299.18533016,0.00054694,4]
[320717651,1711531842301,-386.16261726,0.00054694,4]
[320717652,1711531842311,-155.71,0.000547,8]
[320717653,1711531842321,-155.71,0.000547,8]
[320717654,1711531842334,-155.71,0.000547,8]
[320717655,1711531842355,-150.0,0.00054702,7]
[320717656,1711531842377,-150.0,0.00054703,7]
[320717657,1711531842397,-150.0,0.00054705,7]
[320717658,1711531842417,-150.0,0.00054715,7]
[320717659,1711531842438,-150.0,0.00054719,7]
[320717660,1711531842459,-150.0,0.00054719,7]
[320717661,1711531842480,-150.0,0.00054723,7]
[320717662,1711531842500,-150.0,0.00054726,7]
[320717663,1711531842523,-150.0,0.00054744,7]
[320717664,1711531842543,-150.0,0.00054748,7]
[320717665,1711531842553,-150.0,0.00054749,14]
[320717666,1711531842562,-150.0,0.0005475,7]
[320717667,1711531842573,-844.05033873,0.00054757,120]
[320717669,1711531842583,-150.0,0.00054758,7]
[320717670,1711531842592,-150.0,0.00054776,7]
[320717671,1711531842602,-155.0,0.00054792,4]
[320717672,1711531842612,-605.58124158,0.00054792,4]
[320717673,1711531842621,-374.45200813,0.00054792,4]
[320717674,1711531842631,-155.12969938,0.00054792,4]
[320717675,1711531842640,-155.1927104,0.00054792,4]
[320717676,1711531842649,-155.0,0.00054792,4]
[320717677,1711531842659,-155.14444871,0.00054792,4]
[320717678,1711531842668,-155.32719416,0.00054792,4]
[320717679,1711531842678,-155.93625809,0.00054792,4]
[320717680,1711531842687,-155.48339563,0.00054792,4]
[320717681,1711531842697,-179.89302083,0.00054792,4]
[320717683,1711531842706,-150.0,0.00054792,7]
[320717684,1711531842716,-164202.78697979,0.00054793,120]
[320717685,1711531842726,-562.47397844,0.00054793,120]
[320717686,1711531842736,-7473.20632132,0.00054793,120]
[320717687,1711531842746,-560.0,0.00054794,120]
[320717688,1711531842755,-164.87034558,0.00054794,120]
[320717689,1711531842765,-500.0,0.00054794,120]
[320717690,1711531842774,-502.79464683,0.00054794,120]
[320717691,1711531842783,-500.0,0.00054794,120]
[320717692,1711531842792,-379.85,0.00054794,120]
[320717693,1711531842802,-500.0,0.00054794,120]
[320717694,1711531842811,-500.0,0.00054794,120]
[320717695,1711531842820,-500.0,0.00054794,120]
[320717696,1711531842830,-500.0,0.00054794,120]
[320717697,1711531842840,-500.0,0.00054794,120]
[320717698,1711531842850,-500.0,0.00054794,120]
[320717699,1711531842859,-509.54233857,0.00054794,120]
[320717700,1711531842868,-155.34850331,0.00054794,120]
[320717702,1711531842878,-300.84,0.00054794,120]
[320717704,1711531842888,-500.0,0.00054794,120]
[320717706,1711531842898,-151.0,0.00054794,120]
[320717708,1711531842907,-151.0,0.00054794,120]
[320717710,1711531842917,-581.75,0.00054794,120]
[320717712,1711531842927,-1041.2,0.00054794,120]
[320717714,1711531842936,-510.78712304,0.00054794,120]
[320717716,1711531842945,-500.0,0.00054794,120]
[320717717,1711531842954,-500.0,0.00054794,120]
[320717719,1711531842964,-500.0,0.00054794,120]
[320717721,1711531842973,-500.0,0.00054794,120]
[320717723,1711531842982,-155.0,0.00054794,120]
[320717725,1711531842991,-500.0,0.00054794,120]
[320717727,1711531843002,-151.0,0.00054794,120]
[320717729,1711531843015,-151.0,0.00054794,120]
[320717731,1711531843024,-500.0,0.00054794,120]
[320717733,1711531843034,-509.71309369,0.00054794,120]
[320717735,1711531843044,-500.0,0.00054794,120]
[320717737,1711531843053,-500.0,0.00054794,120]
[320717739,1711531843062,-500.0,0.00054794,120]
[320717741,1711531843071,-500.0,0.00054794,120]
[320717743,1711531843080,-500.0,0.00054794,120]
[320717745,1711531843093,-500.0,0.00054794,120]
[320717747,1711531843103,-500.0,0.00054794,120]
[320717748,1711531843113,-629.99,0.00054794,120]
[320717749,1711531843123,-510.27,0.00054794,120]
[320717750,1711531843134,-500.0,0.00054794,120]